bitfinex-derivatives/quotes_BTCF0:USTF0_20250827
["timestamp","ask_amount","ask_price","bid_price","bid_amount"]
[1756287599797,1.3440283,111050.0,111040.0,0.97289291]
[1756287600098,1.4216183,111050.0,111040.0,0.97289291]
[1756287600294,0.0925483,111050.0,111040.0,0.97289291]
[1756287600494,0.2125483,111050.0,111040.0,0.97289291]
[1756287601097,0.2929383,111050.0,111040.0,0.97289291]
[1756287601300,0.3118683,111050.0,111040.0,0.97389291]
[1756287601894,0.2802383,111050.0,111040.0,0.97389291]
[1756287602094,0.17126,111050.0,111040.0,0.97389291]
[1756287602304,0.0025,111050.0,111040.0,0.97389291]
[1756287607804,0.1530125,111050.0,111040.0,1.80657291]
[1756287609118,0.1530125,111050.0,111040.0,0.97389291]
[1756287609603,0.1751625,111050.0,111040.0,0.97389291]
[1756287610303,0.1864025,111050.0,111040.0,0.6239308]
[1756287610505,0.2193525,111050.0,111040.0,0.6239308]
[1756287610715,0.2469025,111050.0,111040.0,0.97389291]
[1756287611709,0.56391461,111050.0,111040.0,0.50041]
[1756287611911,0.84686461,111050.0,111040.0,0.53196]
[1756287612108,1.68886461,111050.0,111040.0,0.53196]
[1756287614012,1.68886461,111050.0,111040.0,0.46047]
[1756287614203,1.68886461,111050.0,111040.0,0.41798]
[1756287614410,1.68886461,111050.0,111040.0,0.001]
[1756287614712,1.68886461,111050.0,111040.0,0.05562]
[1756287614911,1.68886461,111050.0,111040.0,0.07796]
[1756287615112,1.68886461,111050.0,111040.0,0.1677]
[1756287615313,0.84686461,111050.0,111040.0,0.1677]
[1756287615513,1.68958461,111050.0,111040.0,0.1677]
[1756287620211,1.68958461,111050.0,111040.0,0.09755]
[1756287620416,2.04958461,111050.0,111040.0,0.001]
[1756287620616,1.68958461,111050.0,111040.0,0.001]
[1756287620815,1.70958461,111050.0,111040.0,0.001]
[1756287621113,1.3596225,111050.0,111040.0,0.001]
[1756287621317,1.70958461,111050.0,111040.0,0.001]
[1756287622119,2.03958461,111050.0,111040.0,0.001]
[1756287622319,2.40038461,111050.0,111040.0,0.001]
[1756287622616,2.07038461,111050.0,111040.0,0.001]
[1756287623610,2.04910461,111050.0,111040.0,0.03002]
[1756287623920,1.6988625,111050.0,111040.0,0.10951]
[1756287624215,2.04882461,111050.0,111040.0,0.10951]
[1756287624717,2.04882461,111050.0,111040.0,0.03002]
[1756287625316,2.06882461,111050.0,111040.0,0.03002]
[1756287626620,2.21832461,111050.0,111040.0,0.03002]
[1756287627014,2.51832461,111050.0,111040.0,0.001]
[1756287627218,2.21832461,111050.0,111040.0,0.001]
[1756287627921,1.85752461,111050.0,111040.0,0.001]
[1756287632918,2.55832461,111050.0,111040.0,0.001]
[1756287633219,0.2444106,111040.0,111030.0,0.51586961]
[1756287633517,0.2444106,111040.0,111030.0,0.54741961]
[1756287633721,0.59437271,111040.0,111030.0,0.54741961]
[1756287634517,0.59437271,111040.0,111030.0,0.54841961]
[1756287634717,0.64427271,111040.0,111030.0,0.54841961]
[1756287636619,1.63709271,111040.0,111030.0,0.54841961]
[1756287636820,1.63709271,111040.0,111030.0,0.54941961]
[1756287637320,1.63701271,111040.0,111030.0,0.54941961]
[1756287637519,0.4438106,111040.0,111030.0,0.54941961]
[1756287637717,1.2592606,111040.0,111030.0,0.54941961]
[1756287638222,1.2869006,111040.0,111030.0,0.54941961]
[1756287638423,1.2869006,111040.0,111030.0,0.55010961]
[1756287639117,1.2869006,111040.0,111030.0,0.51786961]
[1756287639521,1.63686271,111040.0,111030.0,0.55010961]
[1756287640018,2.01686271,111040.0,111030.0,0.002]
[1756287640222,2.01766271,111040.0,111030.0,0.002]
[1756287640618,2.37766271,111040.0,111030.0,0.002]
[1756287640819,2.37766271,111040.0,111020.0,0.02987]
[1756287640820,0.1563788,111030.0,111020.0,4e-05]
[1756287641020,2.47038091,111030.0,111020.0,4e-05]
[1756287641220,2.11038091,111030.0,111020.0,0.02987]
[1756287641721,2.92068091,111030.0,111020.0,4e-05]
[1756287641921,0.090075,111010.0,111000.0,0.50197]
[1756287642131,1.43295711,111010.0,111000.0,0.52804]
[1756287642621,1.43295711,111010.0,111000.0,0.4958]
[1756287642815,0.59039711,111010.0,111000.0,0.52804]
[1756287643028,1.43311711,111010.0,111000.0,0.52804]
[1756287643422,1.43211711,111010.0,111000.0,0.52804]
[1756287643728,1.44113466,111010.0,111000.0,0.39067]
[1756287643924,1.44113466,111010.0,111000.0,0.41674]
[1756287644230,1.44113466,111010.0,111000.0,0.41874]
[1756287644523,1.49103466,111010.0,111000.0,0.42074]
[1756287644720,1.90158715,111010.0,111000.0,0.36484]
[1756287644927,2.05108715,111010.0,111000.0,0.00404]
[1756287645118,1.73108715,111010.0,111000.0,0.00404]
[1756287645730,2.39188715,111010.0,111000.0,0.00404]
[1756287646518,1.54916715,111010.0,111000.0,0.00404]
[1756287646829,2.42136715,111010.0,111000.0,0.00404]
[1756287647830,1.22920504,111010.0,111000.0,0.00404]
[1756287648124,2.42136715,111010.0,111000.0,0.17124]
[1756287648428,2.41136715,111010.0,111000.0,0.17124]
[1756287648629,2.41136715,111010.0,111000.0,0.10065]
[1756287649034,1.56916715,111010.0,111000.0,0.10065]
[1756287649326,0.0958,110990.0,110980.0,0.08626]
[1756287649530,1.42294331,110990.0,110980.0,0.47888858]
[1756287650023,1.42294331,110990.0,110980.0,0.40871]
[1756287650229,1.42278331,110990.0,110980.0,0.45982]
[1756287650631,1.42278331,110990.0,110980.0,0.46682]
[1756287650823,1.47268331,110990.0,110980.0,0.46682]
[1756287651024,1.1227212,110990.0,110980.0,0.44395]
[1756287651218,1.47268331,110990.0,110980.0,0.44095]
[1756287651524,1.47268331,110990.0,110980.0,0.44195]
[1756287651719,1.28679211,110990.0,110980.0,0.44195]
[1756287651921,1.33058211,110990.0,110980.0,0.529]
[1756287652429,1.42067331,110990.0,110980.0,0.529]
[1756287653230,1.0707112,110990.0,110980.0,0.529]
[1756287653432,1.0704712,110990.0,110980.0,0.1682]
[1756287653729,0.57811331,110990.0,110980.0,0.1682]
[1756287653924,0.2478612,110990.0,110980.0,0.87896211]
[1756287654130,1.0911012,110990.0,110980.0,0.529]
[1756287654330,1.1187412,110990.0,110980.0,0.529]
[1756287655132,0.62546331,110990.0,110980.0,0.529]
[1756287655332,1.46934331,110990.0,110980.0,0.49676]
[1756287655532,1.46934331,110990.0,110980.0,0.529]
[1756287655728,1.44742331,110990.0,110980.0,0.529]
[1756287655929,1.46926331,110990.0,110980.0,0.529]
[1756287656430,1.46910331,110990.0,110980.0,0.529]
[1756287656630,1.46910331,110990.0,110980.0,0.6190993]
[1756287657032,1.46910331,110990.0,110980.0,0.529]
[1756287660531,0.2755012,110990.0,110980.0,0.6190993]
[1756287660834,1.0488312,110990.0,110980.0,0.98920152]
[1756287661033,1.0903812,110990.0,110980.0,0.88923941]
[1756287661233,1.1180212,110990.0,110980.0,0.88923941]
[1756287661433,1.1180212,110990.0,110980.0,1.23920152]
[1756287661840,1.0903812,110990.0,110980.0,1.23920152]
[1756287662838,0.2478612,110990.0,110980.0,1.23920152]
[1756287663137,0.9822712,110990.0,110980.0,1.23920152]
[1756287664337,0.1399912,110990.0,110980.0,1.23920152]
[1756287664539,0.9819912,110990.0,110980.0,1.23920152]
[1756287665236,0.1399912,110990.0,110980.0,1.23920152]
[1756287665537,0.9817512,110990.0,110980.0,1.23920152]
[1756287665933,0.9817512,110990.0,110980.0,0.98920152]
[1756287667332,1.0902112,110990.0,110980.0,0.98920152]
[1756287667532,1.0292312,110990.0,110980.0,0.98920152]
[1756287667940,1.0073912,110990.0,110980.0,0.98920152]
[1756287668936,1.0292312,110990.0,110980.0,0.98920152]
[1756287669340,1.0691512,110990.0,110980.0,0.98920152]
[1756287669539,1.0898112,110990.0,110980.0,0.98920152]
[1756287670040,1.0685512,110990.0,110980.0,0.98920152]
[1756287670836,1.0896112,110990.0,110980.0,0.98920152]
[1756287671040,1.0894912,110990.0,110980.0,0.98920152]
[1756287672944,1.1193212,110990.0,110980.0,0.98920152]
[1756287673834,1.0894912,110990.0,110980.0,0.98920152]
[1756287674041,0.0499,110990.0,110980.0,1.23920152]
[1756287677744,0.0499,110990.0,110980.0,2.07936152]
[1756287678738,0.0499,110990.0,110980.0,1.23920152]
[1756287678944,0.0499,110990.0,110980.0,2.07936152]
[1756287680447,0.04945,110990.0,110980.0,2.07936152]
[1756287680846,0.03062,110990.0,110980.0,2.07936152]
[1756287681146,0.03062,110990.0,110980.0,2.07848152]
[1756287681843,0.03029,110990.0,110980.0,2.07848152]
[1756287682550,0.02918,110990.0,110980.0,2.07848152]
[1756287683251,0.02918,110990.0,110980.0,1.23920152]
[1756287683450,0.02918,110990.0,110980.0,2.07872152]
[1756287684651,0.02271,110990.0,110980.0,2.07872152]
[1756287685354,0.02241,110990.0,110980.0,2.07872152]
[1756287685651,0.02241,110990.0,110980.0,2.07808152]
[1756287686452,0.0046,110990.0,110980.0,2.07808152]
[1756287686651,0.0046,110990.0,110980.0,1.72811941]
[1756287686945,0.0046,110990.0,110980.0,2.07808152]
[1756287687450,0.95211114,111010.0,111000.0,0.17124]
[1756287687754,0.34522114,111010.0,111000.0,0.88200211]
[1756287688249,0.34522114,111010.0,111000.0,0.97208521]
[1756287688853,0.34822114,111010.0,111000.0,0.97208521]
[1756287689351,0.38005114,111010.0,111000.0,0.6221231]
[1756287689551,0.38005114,111010.0,111000.0,0.97208521]
[1756287689953,0.38005114,111010.0,111000.0,0.6221231]
[1756287690255,0.38005114,111010.0,111000.0,0.97208521]
[1756287690553,1.21901114,111010.0,111000.0,0.97208521]
[1756287694851,0.38005114,111010.0,111000.0,0.97208521]
[1756287695052,1.21877114,111010.0,111000.0,0.97208521]
[1756287696956,1.36827114,111010.0,111000.0,0.88200211]
[1756287697158,1.21877114,111010.0,111000.0,0.88200211]
[1756287697556,1.21877114,111010.0,111000.0,0.97208531]
[1756287698455,1.21877114,111010.0,111000.0,0.88200211]
[1756287699353,1.21877114,111010.0,111000.0,0.3608]
[1756287699549,0.0900831,111000.0,110990.0,0.44767195]
[1756287699755,0.58292521,111000.0,110990.0,0.43750195]
[1756287700259,0.2329631,111000.0,110990.0,0.46035195]
[1756287700559,0.58292521,111000.0,110990.0,0.46035195]
[1756287701055,0.63282521,111000.0,110990.0,0.46035195]
[1756287701254,0.63482521,111000.0,110990.0,0.46035195]
[1756287701962,0.58492521,111000.0,110990.0,0.46035195]
[1756287702356,0.63482521,111000.0,110990.0,0.46035195]
[1756287703354,0.63482521,111000.0,110990.0,0.49268195]
[1756287703550,0.63582521,111000.0,110990.0,0.52962195]
[1756287704661,0.63582521,111000.0,110990.0,0.54782195]
[1756287705961,0.63582521,111000.0,110990.0,0.51549195]
[1756287706258,0.8558631,111000.0,110990.0,0.02012195]
[1756287706559,1.22582521,111000.0,110990.0,0.04993195]
[1756287706760,1.22582521,111000.0,110990.0,0.02012195]
[1756287708863,1.58662521,111000.0,110990.0,0.02012195]
[1756287709454,1.24662521,111000.0,110990.0,0.02012195]
[1756287709660,2.40614521,111000.0,110990.0,0.02012195]
[1756287709858,0.2129012,110990.0,110980.0,0.46037011]
[1756287710165,0.58293331,110990.0,110980.0,0.46037011]
[1756287710365,0.60293331,110990.0,110980.0,0.46037011]
[1756287711265,0.92293331,110990.0,110980.0,0.46037011]
[1756287711465,0.9337712,110990.0,110980.0,0.13651011]
[1756287711666,1.28373331,110990.0,110980.0,0.13651011]
[1756287711866,1.28373331,110990.0,110980.0,0.09957011]
[1756287712575,0.9836712,110990.0,110980.0,0.09957011]
[1756287712864,1.33363331,110990.0,110980.0,0.09957011]
[1756287713066,1.16318469,110990.0,110980.0,0.09957011]
[1756287713267,0.91240589,110990.0,110980.0,0.09957011]
[1756287713664,0.91240589,110990.0,110980.0,0.07672011]
[1756287714064,1.16240589,110990.0,110980.0,0.04995011]
[1756287714465,0.1100293,110980.0,110970.0,0.10476]
[1756287714670,1.34746141,110980.0,110970.0,0.04962]
[1756287714965,1.34746141,110980.0,110970.0,0.41042]
[1756287715172,1.35746141,110980.0,110970.0,0.41042]
[1756287715471,1.40736141,110980.0,110970.0,0.49789]
[1756287716068,1.40736141,110980.0,110970.0,0.49889]
[1756287716270,1.40736141,110980.0,110970.0,0.49989]
[1756287716458,1.0573193,110980.0,110970.0,0.5115]
[1756287716657,1.69728141,110980.0,110970.0,0.11837]
[1756287716868,1.69728141,110980.0,110970.0,0.1507]
[1756287717266,1.84678141,110980.0,110970.0,0.1507]
[1756287717976,1.84678141,110980.0,110970.0,0.11837]
[1756287718161,1.84678141,110980.0,110970.0,0.08143]
[1756287719370,1.84678141,110980.0,110970.0,0.05162]
[1756287719575,1.84678141,110980.0,110970.0,0.002]
[1756287719769,1.84678141,110980.0,110970.0,0.02877]
[1756287720164,1.84678141,110980.0,110970.0,0.08143]
[1756287720368,1.84678141,110980.0,110970.0,0.002]
[1756287720868,1.84678141,110980.0,110970.0,0.05162]
[1756287721065,1.84678141,110980.0,110970.0,0.002]
[1756287721265,2.21014141,110980.0,110970.0,0.02877]
[1756287721861,1.36886141,110980.0,110970.0,0.02877]
[1756287722171,1.00806141,110980.0,110970.0,0.05162]
[1756287722372,1.89046141,110980.0,110970.0,0.1679]
[1756287722673,1.89146141,110980.0,110970.0,0.1679]
[1756287724274,1.89146141,110980.0,110970.0,0.1669]
[1756287724466,1.05106141,110980.0,110970.0,0.1669]
[1756287724666,1.87310141,110980.0,110970.0,0.1669]
[1756287726074,1.03106141,110980.0,110970.0,0.1669]
[1756287726268,1.86302141,110980.0,110970.0,0.1669]
[1756287727768,1.02106141,110980.0,110970.0,0.1669]
[1756287728075,1.84266141,110980.0,110970.0,0.1669]
[1756287729476,1.00106141,110980.0,110970.0,0.1669]
[1756287729777,1.53230141,110980.0,110970.0,0.1669]
[1756287729978,1.88230141,110980.0,110970.0,0.1669]
[1756287730573,0.6910993,110980.0,110970.0,0.1669]
[1756287730778,1.87166141,110980.0,110970.0,0.1669]
[1756287733586,1.03106141,110980.0,110970.0,0.1669]
[1756287733779,1.53118141,110980.0,110970.0,0.1669]
[1756287733975,1.90118141,110980.0,110970.0,0.1669]
[1756287734778,0.69106141,110980.0,110970.0,0.1669]
[1756287734982,1.87094141,110980.0,110970.0,0.1669]
[1756287736381,1.53066141,110980.0,110970.0,0.1669]
[1756287736580,1.87066141,110980.0,110970.0,0.1669]
[1756287737275,2.04727722,110980.0,110970.0,0.1669]
[1756287737875,0.86767722,110980.0,110970.0,0.1669]
[1756287738070,2.06699722,110980.0,110970.0,0.1669]
[1756287738785,1.22767722,110980.0,110970.0,0.1669]
[1756287738983,2.08667722,110980.0,110970.0,0.1669]
[1756287741187,2.08667722,110980.0,110970.0,0.12996]
[1756287741484,2.08667722,110980.0,110970.0,0.07943]
[1756287741786,2.08667722,110980.0,110970.0,0.04962]
[1756287742088,0.1366674,110970.0,110960.0,0.79212896]
[1756287742288,0.39995636,110970.0,110960.0,0.79212896]
[1756287742588,0.39995636,110970.0,110960.0,0.88224456]
[1756287743387,0.39995636,110970.0,110960.0,0.79212896]
[1756287745890,0.1366674,110970.0,110960.0,0.88224456]
[1756287746087,0.39995636,110970.0,110960.0,0.88224456]
[1756287747286,0.1366674,110970.0,110960.0,0.88224456]
[1756287747489,0.9284674,110970.0,110960.0,1.14553352]
[1756287748894,0.9282274,110970.0,110960.0,1.39553352]
[1756287749292,0.1865593,110980.0,110970.0,0.2581474]
[1756287749488,1.0243593,110980.0,110970.0,0.88223636]
[1756287750388,1.25997826,110980.0,110970.0,0.88223636]
[1756287750990,1.28752826,110980.0,110970.0,0.88223636]
[1756287751182,1.28952826,110980.0,110970.0,0.88223636]
[1756287751992,1.29052826,110980.0,110970.0,0.88223636]
[1756287753893,0.9992093,110980.0,110970.0,1.39552532]
[1756287754094,0.9992093,110980.0,110970.0,1.13223636]
[1756287757498,1.0284093,110980.0,110970.0,0.8689474]
[1756287757793,0.0901074,110970.0,110960.0,0.4683]
[1756287757992,0.40087636,110970.0,110960.0,0.13362]
[1756287758298,0.40087636,110970.0,110960.0,0.49442]
[1756287758499,0.1375874,110970.0,110960.0,0.49442]
[1756287758702,0.40087636,110970.0,110960.0,0.52761]
[1756287759203,0.40087636,110970.0,110960.0,0.40991]
[1756287759499,0.48870049,110970.0,110960.0,0.52761]
[1756287759700,1.32546049,110970.0,110960.0,0.52761]
[1756287759999,1.32534049,110970.0,110960.0,0.52761]
[1756287760194,0.9449874,110970.0,110960.0,0.96883879]
[1756287760593,0.9948874,110970.0,110960.0,0.96883879]
[1756287761399,1.0240874,110970.0,110960.0,0.96883879]
[1756287761590,1.0246874,110970.0,110960.0,0.96883879]
[1756287761793,0.1874874,110970.0,110960.0,0.96883879]
[1756287761998,1.0245674,110970.0,110960.0,0.96883879]
[1756287765404,0.1874874,110970.0,110960.0,0.96883879]
[1756287765704,1.0241274,110970.0,110960.0,0.96883879]
[1756287767304,1.0241274,110970.0,110960.0,0.6177257]
[1756287767505,1.0241274,110970.0,110960.0,0.96883879]
[1756287769298,1.0241274,110970.0,110960.0,0.6177257]
[1756287769499,1.0241274,110970.0,110960.0,0.96883879]
[1756287770407,0.9944074,110970.0,110960.0,0.96883879]
[1756287770999,1.0236074,110970.0,110960.0,0.96883879]
[1756287777216,0.1874874,110970.0,110960.0,0.96883879]
[1756287777517,0.9760875,110970.0,110960.0,0.96883879]
[1756287778121,0.9943675,110970.0,110960.0,0.96883879]
[1756287778525,0.9760875,110970.0,110960.0,1.21883879]
[1756287778729,0.88598,110970.0,110960.0,0.8677257]
[1756287778925,0.88598,110970.0,110960.0,1.21883879]
[1756287779726,0.9760874,110970.0,110960.0,1.21883879]
[1756287779931,1.0052874,110970.0,110960.0,1.21883879]
[1756287782120,1.0235674,110970.0,110960.0,0.8677257]
[1756287782320,0.88594,110970.0,110960.0,1.21883879]
[1756287783321,0.0499,110970.0,110960.0,1.21883879]
[1756287783519,0.0499,110970.0,110960.0,1.56995188]
[1756287785930,0.0499,110970.0,110960.0,1.31995188]
[1756287787724,0.0499,110970.0,110960.0,1.56995188]
[1756287788029,0.8453225,110990.0,110980.0,0.2548793]
[1756287788235,1.4072825,110990.0,110980.0,0.96679239]
[1756287789529,0.5739125,110990.0,110980.0,0.96679239]
[1756287789827,1.4099125,110990.0,110980.0,0.96679239]
[1756287790032,1.1298725,110990.0,110980.0,0.96679239]
[1756287790332,0.01555731,110990.0,110980.0,1.32759239]
[1756287790632,0.002,110990.0,110980.0,2.24355239]
[1756287791632,0.002,110990.0,110980.0,1.8924393]
[1756287791934,0.002,110990.0,110980.0,2.24355239]
[1756287792428,0.002,110990.0,110980.0,2.49355239]
[1756287793132,0.91945195,111010.0,111000.0,0.2548631]
[1756287793433,0.42364695,111010.0,111000.0,1.04677619]
[1756287794026,0.32447695,111010.0,111000.0,1.04677619]
[1756287794330,0.32847695,111010.0,111000.0,1.04677619]
[1756287794634,0.16635695,111020.0,111010.0,0.254855]
[1756287794929,0.16635695,111020.0,111010.0,0.945655]
[1756287795632,0.16635695,111020.0,111010.0,0.615655]
[1756287795633,0.25642375,111020.0,111010.0,0.615655]
[1756287795833,0.25642375,111020.0,111010.0,0.945655]
[1756287796330,0.60753684,111020.0,111010.0,0.41615]
[1756287796630,0.86353684,111020.0,111010.0,0.05535]
[1756287796834,0.8731673,111020.0,111010.0,0.05535]
[1756287797038,0.090075,111010.0,111000.0,0.02938]
[1756287797239,0.47723809,111010.0,111000.0,0.00818424]
[1756287797435,0.71337428,111010.0,111000.0,0.02938]
[1756287797735,0.0900848,111000.0,110990.0,0.02938]
[1756287797931,1.28023789,111000.0,110990.0,0.02938]
[1756287798633,1.33013789,111000.0,110990.0,0.05535]
[1756287799223,0.9790248,111000.0,110990.0,0.07697]
[1756287799427,0.9790248,111000.0,110990.0,0.16478]
[1756287799939,0.9810248,111000.0,110990.0,0.16478]
[1756287800233,0.9311248,111000.0,110990.0,0.16478]
[1756287800435,0.9810248,111000.0,110990.0,0.16478]
[1756287801729,1.1305248,111000.0,110990.0,0.16478]
[1756287801939,0.9810248,111000.0,110990.0,0.16478]
[1756287802836,0.1419848,111000.0,110990.0,0.16478]
[1756287803038,0.9797848,111000.0,110990.0,0.96678429]
[1756287803436,0.1419848,111000.0,110990.0,1.31678429]
[1756287803634,0.9797048,111000.0,110990.0,1.31678429]
[1756287803838,0.9797448,111000.0,110990.0,1.31678429]
[1756287808142,0.9797448,111000.0,110990.0,1.20669309]
[1756287809244,0.9797448,111000.0,110990.0,1.29678429]
[1756287811442,0.9797448,111000.0,110990.0,0.96678429]
[1756287811736,0.1419848,111000.0,110990.0,1.28678429]
[1756287811942,0.9782248,111000.0,110990.0,1.28678429]
[1756287812137,0.1419848,111000.0,110990.0,1.28678429]
[1756287812335,0.9782248,111000.0,110990.0,0.96678429]
[1756287812536,0.9782248,111000.0,110990.0,1.27678429]
[1756287815643,0.9782248,111000.0,110990.0,0.96678429]
[1756287815846,0.9782248,111000.0,110990.0,1.27678429]
[1756287816545,0.9857948,111000.0,110990.0,1.27678429]
[1756287816746,0.9979048,111000.0,110990.0,0.6156712]
[1756287816944,0.9979048,111000.0,110990.0,1.30678429]
[1756287817145,0.9969048,111000.0,110990.0,1.30678429]
[1756287817941,0.9969048,111000.0,110990.0,0.96678429]
[1756287818449,0.9969048,111000.0,110990.0,1.28506429]
[1756287818646,0.9969048,111000.0,110990.0,1.31781429]
[1756287819257,0.9965048,111000.0,110990.0,1.31781429]
[1756287820242,0.9965048,111000.0,110990.0,0.9367012]
[1756287820445,0.1606648,111000.0,110990.0,1.28781429]
[1756287820744,0.9965048,111000.0,110990.0,1.28781429]
[1756287823151,0.9965048,111000.0,110990.0,0.96781429]
[1756287823350,0.1606648,111000.0,110990.0,1.33781429]
[1756287823552,0.9964648,111000.0,110990.0,1.33781429]
[1756287824246,0.9964648,111000.0,110990.0,0.6167012]
[1756287824453,0.9964648,111000.0,110990.0,1.32781429]
[1756287825856,0.9964648,111000.0,110990.0,0.6167012]
[1756287826049,0.9964648,111000.0,110990.0,0.52661]
[1756287826246,0.9964648,111000.0,110990.0,1.20772309]
[1756287826759,0.9964648,111000.0,110990.0,0.82386]
[1756287827049,0.9964648,111000.0,110990.0,1.19772309]
[1756287827255,0.9964648,111000.0,110990.0,1.28781449]
[1756287829156,0.9964648,111000.0,110990.0,0.9367014]
[1756287829361,0.9964648,111000.0,110990.0,1.27781449]
[1756287832356,0.9964648,111000.0,110990.0,0.96781449]
[1756287832561,0.9964648,111000.0,110990.0,1.29781449]
[1756287833558,0.1606648,111000.0,110990.0,1.29781449]
[1756287833755,0.9964648,111000.0,110990.0,1.29781449]
[1756287833955,0.1606648,111000.0,110990.0,0.6167014]
[1756287834157,0.9888948,111000.0,110990.0,0.99781449]
[1756287834356,0.9888948,111000.0,110990.0,0.6167014]
[1756287834652,0.9964648,111000.0,110990.0,1.31781449]
[1756287836061,0.9964648,111000.0,110990.0,1.00781449]
[1756287836364,0.9964648,111000.0,110990.0,1.27781449]
[1756287836562,1.1459648,111000.0,110990.0,1.27781449]
[1756287836869,0.9964648,111000.0,110990.0,1.27781449]
[1756287837867,0.9964648,111000.0,110990.0,0.96781449]
[1756287838169,0.9964648,111000.0,110990.0,1.33781449]
[1756287839067,0.9964648,111000.0,110990.0,1.21497309]
[1756287839462,0.9964648,111000.0,110990.0,1.24772309]
[1756287840068,0.1606648,111000.0,110990.0,1.33781429]
[1756287840269,0.9964648,111000.0,110990.0,1.33781429]
[1756287840764,0.1606631,111000.0,110990.0,1.33781429]
[1756287840968,0.9767831,111000.0,110990.0,1.33781429]
[1756287841172,0.1409831,111000.0,110990.0,1.33781429]
[1756287846073,0.0509,111000.0,110990.0,1.33781429]
[1756287846571,0.0998922,111010.0,111000.0,0.1623131]
[1756287846773,0.9356522,111010.0,111000.0,1.31172619]
[1756287847173,0.9356522,111010.0,111000.0,0.98172619]
[1756287847374,0.9356522,111010.0,111000.0,1.31172619]
[1756287847772,0.9386522,111010.0,111000.0,1.31172619]
[1756287849280,0.1028922,111010.0,111000.0,1.31172619]
[1756287849575,0.9386522,111010.0,111000.0,1.31172619]
[1756287853473,0.003,111010.0,111000.0,1.31172619]
[1756287853674,0.83872,111010.0,111000.0,1.31172619]
[1756287855180,0.9287949,111010.0,111000.0,1.31172619]
[1756287856283,0.9267949,111010.0,111000.0,1.31172619]
[1756287856582,0.0910749,111010.0,111000.0,1.31172619]
[1756287856790,0.9257549,111010.0,111000.0,1.31172619]
[1756287859683,0.9257549,111010.0,111000.0,0.98172619]
[1756287859883,0.9257549,111010.0,111000.0,1.30172619]
[1756287860386,0.0900749,111010.0,111000.0,1.30172619]
[1756287860682,0.9257149,111010.0,111000.0,1.30172619]
[1756287861379,0.9257149,111010.0,111000.0,1.4767306]
[1756287861576,0.0900749,111010.0,111000.0,1.4767306]
[1756287861779,0.9256749,111010.0,111000.0,1.4767306]
[1756287862682,0.0900749,111010.0,111000.0,1.4767306]
[1756287862885,0.9256349,111010.0,111000.0,1.4767306]
[1756287863084,0.9266349,111010.0,111000.0,1.4767306]
[1756287863284,0.0910749,111010.0,111000.0,1.4767306]
[1756287863586,0.9266349,111010.0,111000.0,1.4767306]
[1756287863787,0.9276349,111010.0,111000.0,1.4767306]
[1756287864185,0.0920749,111010.0,111000.0,1.4767306]
[1756287864386,0.9276349,111010.0,111000.0,1.4767306]
[1756287865185,0.9266349,111010.0,111000.0,1.4767306]
[1756287865388,0.9256349,111010.0,111000.0,1.4767306]
[1756287866683,0.9256349,111010.0,111000.0,0.6306131]
[1756287866888,0.9256349,111010.0,111000.0,1.5067306]
[1756287867489,0.9256349,111010.0,111000.0,1.52674427]
[1756287867688,0.0900749,111010.0,111000.0,1.52674427]
[1756287867891,0.9255949,111010.0,111000.0,1.52674427]
[1756287868084,0.9275949,111010.0,111000.0,1.52674427]
[1756287868485,0.9265949,111010.0,111000.0,1.52674427]
[1756287869688,0.0920749,111010.0,111000.0,1.52674427]
[1756287869888,0.9265549,111010.0,111000.0,1.52674427]
[1756287870386,0.9265149,111010.0,111000.0,1.52674427]
[1756287870592,0.9275149,111010.0,111000.0,1.52674427]
[1756287872893,0.0910749,111010.0,111000.0,1.52674427]
[1756287873193,0.9255149,111010.0,111000.0,1.52674427]
[1756287873692,0.0910749,111010.0,111000.0,1.52674427]
[1756287873893,0.9264749,111010.0,111000.0,1.52674427]
[1756287874095,0.82150709,111010.0,111000.0,1.52674427]
[1756287874395,0.82250709,111010.0,111000.0,1.52674427]
[1756287878699,0.82250709,111010.0,111000.0,1.52774427]
[1756287879402,0.0910749,111010.0,111000.0,1.52774427]
[1756287879603,0.9263549,111010.0,111000.0,1.52774427]
[1756287879796,0.9253549,111010.0,111000.0,1.52774427]
[1756287882903,0.9253549,111010.0,111000.0,1.52674427]
[1756287883203,1.18841365,111010.0,111000.0,1.39666117]
[1756287884401,1.18941365,111010.0,111000.0,1.13360242]
[1756287884799,1.19121365,111010.0,111000.0,1.13360242]
[1756287885205,1.19121365,111010.0,111000.0,1.39666117]
[1756287885909,1.19221365,111010.0,111000.0,0.82360242]
[1756287886601,1.44221365,111010.0,111000.0,0.46280242]
[1756287886803,1.44221365,111010.0,111000.0,0.19974367]
[1756287887000,1.59171365,111010.0,111000.0,0.16560367]
[1756287887202,1.92171365,111010.0,111000.0,0.42866242]
[1756287887397,1.92171365,111010.0,111000.0,0.38473242]
[1756287887900,1.92171365,111010.0,111000.0,0.41843242]
[1756287888101,1.92171365,111010.0,111000.0,0.12167367]
[1756287888307,2.28251365,111010.0,111000.0,0.02943]
[1756287888504,0.1032212,110990.0,110980.0,0.43920141]
[1756287888709,1.20135995,110990.0,110980.0,0.69572875]
[1756287889209,0.36627995,110990.0,110980.0,0.69572875]
[1756287889407,1.25121995,110990.0,110980.0,0.69572875]
[1756287889804,1.25121995,110990.0,110980.0,0.69772875]
[1756287890306,1.25121995,110990.0,110980.0,0.69872875]
[1756287890507,1.25121995,110990.0,110980.0,0.72755875]
[1756287891109,0.9881612,110990.0,110980.0,0.4645]
[1756287891409,1.25121995,110990.0,110980.0,0.72655875]
[1756287891806,1.50121995,110990.0,110980.0,0.38117]
[1756287892000,1.50121995,110990.0,110980.0,0.08883]
[1756287892210,1.50121995,110990.0,110980.0,0.14175]
[1756287892406,1.5581612,110990.0,110980.0,0.2415]
[1756287892711,1.52121995,110990.0,110980.0,0.50455875]
[1756287893111,1.52121995,110990.0,110980.0,0.47085875]
[1756287893708,1.52121995,110990.0,110980.0,0.50455875]
[1756287895413,1.2581612,110990.0,110980.0,0.50455875]
[1756287895614,1.52121995,110990.0,110980.0,0.50455875]
[1756287897417,1.67071995,110990.0,110980.0,0.50455875]
[1756287898918,0.83567995,110990.0,110980.0,0.42422875]
[1756287899118,1.99063995,110990.0,110980.0,0.40480875]
[1756287899416,1.99063995,110990.0,110980.0,0.08883]
[1756287899712,1.65063995,110990.0,110980.0,0.08883]
[1756287899922,1.67063995,110990.0,110980.0,0.02883]
[1756287900718,1.67063995,110990.0,110980.0,0.05997]
[1756287901012,1.67063995,110990.0,110980.0,0.08175]
[1756287901906,1.67055995,110990.0,110980.0,0.11545]
[1756287902311,1.67055995,110990.0,110980.0,0.37850875]
[1756287902518,1.98055995,110990.0,110980.0,0.02883]
[1756287904325,1.67055995,110990.0,110980.0,0.02883]